bitfinex-derivatives/quotes_ETHF0:USTF0_20241007
["timestamp","ask_amount","ask_price","bid_price","bid_amount"]
[1728271255621,3.2078,2505.1,2504.6,0.4131]
[1728271255828,3.2078,2505.1,2504.7,0.27948]
[1728271255829,3.48724,2505.1,2504.7,0.27948]
[1728271256036,3.12,2505.0,2504.7,0.27948]
[1728271256326,3.12,2505.0,2504.6,0.4131]
[1728271256629,3.12,2505.0,2504.8,0.27946]
[1728271256824,3.12,2505.0,2504.9,0.4004]
[1728271262615,3.12,2505.0,2504.9,0.67986]
[1728271262818,3.12,2505.0,2504.9,4.67186]
[1728271265027,3.12,2505.0,2504.9,0.67986]
[1728271266231,3.12,2505.0,2504.9,0.4004]
[1728271266630,3.12,2505.0,2504.9,0.67986]
[1728271271940,3.2078,2505.1,2504.9,0.4004]
[1728271272325,3.2078,2505.1,2505.0,0.393]
[1728271272829,3.2078,2505.4,2505.0,4.385]
[1728271273030,0.372,2505.9,2505.3,0.27941]
[1728271273031,6.7211,2505.8,2505.3,0.27941]
[1728271273227,0.27937,2505.7,2505.4,0.386]
[1728271273626,3.39939,2505.6,2505.4,0.386]
[1728271274834,3.12,2505.6,2505.4,0.6654]
[1728271275033,3.12,2505.6,2505.4,0.386]
[1728271275230,3.39938,2505.6,2505.4,0.386]
[1728271276334,3.2078,2505.5,2505.1,0.3847]
[1728271276535,3.4872,2505.5,2505.2,0.27942]
[1728271276831,3.12,2505.4,2505.2,0.27942]
[1728271277531,3.12,2505.4,2505.1,0.7809]
[1728271277828,3.12,2505.4,2505.2,0.27943]
[1728271278227,3.12,2505.4,2505.1,0.7809]
[1728271278438,3.12,2505.4,2505.2,0.27942]
[1728271278630,3.12,2505.4,2505.3,0.27942]
[1728271278941,3.12,2505.4,2505.1,0.7809]
[1728271278942,3.12,2505.4,2505.2,0.27942]
[1728271279435,3.12,2505.4,2505.3,0.27942]
[1728271280138,3.2078,2505.5,2505.4,0.27941]
[1728271280338,3.2078,2505.5,2505.3,0.27941]
[1728271281841,3.2078,2505.5,2505.2,0.27942]
[1728271281842,3.4872,2505.5,2505.2,0.27942]
[1728271283429,3.2078,2505.5,2505.1,0.7809]
[1728271283632,3.2078,2505.5,2505.3,0.27941]
[1728271284351,0.3933,2505.8,2505.7,0.27937]
[1728271285336,0.3933,2505.8,2505.2,3.12]
[1728271285739,0.3933,2505.8,2505.7,0.27937]
[1728271285939,0.4224,2505.9,2505.4,3.12]
[1728271286237,0.4224,2505.9,2505.8,0.27936]
[1728271286440,0.4224,2505.9,2505.5,0.3844]
[1728271286643,3.89773,2506.1,2505.5,0.3844]
[1728271286644,3.6184,2506.1,2505.6,0.4035]
[1728271286943,3.6184,2506.1,2505.6,0.8229]
[1728271286944,3.607,2506.1,2505.6,0.8229]
[1728271287336,3.88633,2506.1,2505.7,0.27936]
[1728271287534,3.88633,2506.1,2505.7,0.27937]
[1728271287943,0.27934,2506.0,2505.7,0.27937]
[1728271288442,0.27934,2506.0,2505.6,0.8229]
[1728271288443,3.12,2506.0,2505.6,1.10228]
[1728271288648,3.2078,2505.8,2505.6,1.10228]
[1728271290643,3.2078,2505.8,2504.9,7.3978]
[1728271290644,3.12,2505.7,2504.9,8.6828]
[1728271290849,3.12,2505.7,2505.3,0.27942]
[1728271290850,3.2078,2505.5,2505.3,0.27942]
[1728271291851,3.4872,2505.5,2505.2,0.27942]
[1728271292447,3.2078,2505.5,2505.1,0.4059]
[1728271292749,3.4872,2505.5,2505.1,0.4059]
[1728271292952,3.4872,2505.5,2505.2,0.27943]
[1728271293150,3.4872,2505.5,2505.1,0.68533]
[1728271293545,3.4872,2505.5,2505.1,0.4059]
[1728271293750,3.4872,2505.5,2505.2,0.27943]
[1728271294348,3.2078,2505.5,2505.2,0.27943]
[1728271294744,3.4872,2505.5,2505.2,0.27943]
[1728271295138,3.2078,2505.5,2505.2,0.27943]
[1728271295351,3.4872,2505.5,2505.2,0.27943]
[1728271295547,3.2078,2505.5,2505.2,0.27943]
[1728271296743,3.2078,2505.5,2505.3,0.27942]
[1728271298760,3.2078,2505.5,2505.4,0.27941]
[1728271299256,3.2078,2505.8,2505.7,0.27937]
[1728271302052,3.2078,2505.8,2505.5,0.8342]
[1728271302254,3.2078,2505.8,2505.6,0.27938]
[1728271302764,3.629,2505.8,2505.6,0.27938]
[1728271302967,4.0165,2505.8,2505.6,0.27938]
[1728271303463,4.0165,2505.8,2505.3,0.3996]
[1728271303464,7.1365,2505.8,2505.3,0.3996]
[1728271303654,3.2078,2505.5,2505.1,0.8208]
[1728271304163,3.2078,2505.5,2505.1,5.22425352]
[1728271304362,3.2078,2505.5,2505.3,0.27941]
[1728271304658,3.2078,2505.5,2505.1,0.8208]
[1728271305372,3.2078,2505.5,2505.3,0.27941]
[1728271306253,3.2078,2505.5,2505.1,0.8208]
[1728271306454,3.2078,2505.5,2505.3,0.27941]
[1728271307362,3.2078,2505.5,2505.1,0.8208]
[1728271307566,3.2078,2505.5,2505.4,0.27941]
[1728271307766,3.2078,2505.5,2505.3,0.27941]
[1728271307966,3.2078,2505.5,2505.1,0.8208]
[1728271307967,3.2078,2505.5,2505.2,0.27943]
[1728271308169,3.2078,2505.5,2505.3,0.27941]
[1728271309164,3.2078,2505.5,2505.4,0.27941]
[1728271312764,3.2078,2505.5,2505.3,0.27942]
[1728271313068,3.2078,2505.5,2505.4,0.27941]
[1728271318870,0.8087,2505.8,2505.2,3.12]
[1728271319060,0.8087,2505.8,2505.6,0.27937]
[1728271319571,3.2078,2505.9,2505.8,0.27936]
[1728271319776,0.4169,2506.3,2506.0,0.27933]
[1728271319976,0.69621,2506.3,2506.0,0.27933]
[1728271320669,0.4169,2506.3,2506.0,0.27933]
[1728271321070,0.69621,2506.3,2506.0,0.27933]
[1728271321276,0.4169,2506.3,2506.1,0.27932]
[1728271321669,0.4169,2506.3,2506.0,0.27933]
[1728271321873,0.69621,2506.3,2506.0,0.27933]
[1728271322866,0.4169,2506.3,2506.1,0.27932]
[1728271323074,0.4169,2506.3,2505.7,1.2361]
[1728271323278,0.69621,2506.3,2506.0,0.27933]
[1728271324268,3.2078,2506.1,2505.9,0.27934]
[1728271324469,3.2078,2506.1,2505.8,0.27935]
[1728271324864,3.2078,2506.1,2505.7,1.2361]
[1728271325064,3.2078,2506.1,2505.9,0.27934]
[1728271326370,3.12,2506.0,2505.7,0.4157]
[1728271326566,3.12,2506.0,2505.7,0.69507]
[1728271326567,3.2078,2505.8,2505.7,0.69507]
[1728271326967,3.2078,2505.8,2505.7,0.4157]
[1728271327372,3.2078,2505.8,2505.7,0.69507]
[1728271328472,3.2078,2505.8,2505.7,0.4157]
[1728271331480,3.2078,2505.8,2505.7,0.69507]
[1728271331870,3.2078,2506.1,2505.8,0.27935]
[1728271332077,3.2078,2506.1,2505.9,0.27934]
[1728271335076,0.27932,2506.2,2505.9,0.27934]
[1728271335282,3.48712,2506.2,2505.9,0.27934]
[1728271335477,3.48712,2506.2,2505.8,0.8205]
[1728271335683,3.48712,2506.2,2505.8,1.09986]
[1728271336383,4.92712,2506.2,2505.8,1.09986]
[1728271338074,0.27933,2506.1,2505.8,1.09986]
[1728271338587,3.2078,2505.9,2505.7,0.4157]
[1728271338880,3.48715,2505.9,2505.7,0.4157]
[1728271339082,3.90445,2505.9,2505.7,0.4157]
[1728271341391,3.6251,2505.9,2505.7,0.4157]
[1728271341688,3.6251,2505.9,2505.7,0.69507]
[1728271342479,3.2078,2505.9,2505.8,0.27936]
[1728271342682,3.2078,2505.9,2505.8,2.10776]
[1728271342887,3.48712,2506.2,2505.9,0.27934]
[1728271343086,3.48712,2506.2,2505.9,0.67374]
[1728271343988,3.2078,2506.2,2506.0,0.27934]
[1728271344179,3.2078,2506.2,2505.9,0.67374]
[1728271344589,0.27932,2506.2,2505.9,0.67374]
[1728271344790,3.48712,2506.2,2505.9,0.67374]
[1728271345993,3.2078,2506.2,2506.1,1.71933]
[1728271346186,3.2078,2506.5,2506.3,0.2793]
[1728271346487,3.2078,2506.5,2506.2,1.09751]
[1728271346683,3.2078,2506.5,2506.2,0.8182]
[1728271346889,3.2078,2506.5,2506.2,1.09752]
[1728271347089,3.48709,2506.5,2506.2,0.8182]
[1728271347291,3.48709,2506.5,2506.2,1.09751]
[1728271348384,3.2078,2506.5,2506.2,1.09751]
[1728271349378,3.2078,2506.5,2506.3,0.2793]
[1728271353100,3.2078,2506.4,2506.3,0.2793]
[1728271355585,3.2078,2506.4,2506.3,0.27931]
[1728271361989,0.69547,2506.6,2506.3,0.27931]
[1728271362194,3.2078,2506.4,2506.3,0.27931]
[1728271371297,1.8562,2506.6,2506.4,0.27929]
[1728271371502,3.2078,2506.5,2506.4,0.27929]
[1728271375508,1.8562,2506.6,2506.4,0.27929]
[1728271375704,3.2078,2506.5,2506.4,0.27929]
[1728271375908,3.2078,2506.5,2506.2,0.8182]
[1728271376402,3.2078,2506.5,2506.3,0.27929]
[1728271376608,3.2078,2506.5,2506.4,0.27929]
[1728271377910,3.2078,2506.5,2506.3,0.2793]
[1728271378110,3.2078,2506.5,2506.4,0.27929]
[1728271378509,8.6374,2506.5,2505.9,0.3944]
[1728271378730,3.2078,2506.2,2506.1,0.27932]
[1728271378904,3.2078,2506.2,2506.0,0.67803]
[1728271379210,0.4135,2506.1,2506.0,0.3987]
[1728271379410,0.4135,2506.1,2505.9,1.07594]
[1728271379915,0.4135,2506.1,2506.0,0.27934]
[1728271380209,0.4135,2506.1,2505.9,0.7966]
[1728271380410,0.4135,2506.1,2506.0,0.27934]
[1728271383313,3.6213,2506.1,2506.0,0.27934]
[1728271384012,0.4135,2506.1,2506.0,0.27934]
[1728271384307,3.6213,2506.1,2506.0,0.27934]
[1728271384509,3.6213,2506.1,2505.9,0.7966]
[1728271384510,5.0613,2506.1,2505.9,0.7966]
[1728271384706,5.0613,2506.1,2505.8,0.70205]
[1728271385314,5.0613,2506.1,2505.9,0.27935]
[1728271385706,5.0613,2506.1,2505.8,0.4227]
[1728271386011,5.34063,2506.1,2505.8,0.70206]
[1728271386710,5.0613,2506.1,2505.8,0.70206]
[1728271387507,5.0613,2506.1,2505.9,0.27935]
[1728271388610,1.8535,2506.1,2505.9,0.27935]
[1728271388915,3.2078,2506.0,2505.9,0.27935]
[1728271389519,1.8535,2506.1,2505.9,0.27935]
[1728271389718,3.2078,2506.0,2505.9,0.27935]
[1728271390519,1.8535,2506.1,2505.9,0.27935]
[1728271390816,3.2078,2506.0,2505.9,0.27935]
[1728271391519,1.8535,2506.1,2505.9,0.27935]
[1728271391719,3.2078,2506.0,2505.9,0.27935]
[1728271392312,3.2078,2506.0,2505.3,0.27941]
[1728271392313,0.27939,2505.6,2505.3,0.27941]
[1728271392518,0.27939,2505.6,2505.3,0.4154]
[1728271392519,1.44,2505.4,2505.3,0.4154]
[1728271393517,1.44,2505.4,2505.3,0.69482]
[1728271394318,3.2078,2505.9,2505.8,0.27935]
[1728271394622,3.2078,2505.9,2505.8,1.71935]
[1728271394815,3.2078,2505.9,2505.8,0.27935]
[1728271396224,1.44,2506.1,2505.9,0.27935]
[1728271396914,1.44,2506.1,2505.7,1.2083]
[1728271396915,5.4304,2506.0,2505.7,1.2083]
[1728271397222,5.4304,2506.0,2505.7,0.4]
[1728271397223,4.92716,2505.8,2505.7,0.4]
[1728271398219,0.27937,2505.7,2505.4,1.0781]
[1728271398429,3.2078,2505.5,2505.4,1.2202]
[1728271399221,3.2078,2505.5,2505.4,0.8283]
[1728271399420,3.48719,2505.5,2505.4,0.8283]
[1728271399822,3.2078,2505.5,2505.4,0.8283]
[1728271400325,3.2078,2505.5,2505.4,1.10771]
[1728271404430,3.2078,2505.5,2505.4,0.8283]
[1728271405120,6.60719,2505.5,2505.4,0.8283]
[1728271405323,6.60719,2505.5,2505.4,0.4215]
[1728271406028,3.2078,2505.5,2505.4,0.4215]
[1728271410833,3.48719,2505.5,2505.2,0.7879]
[1728271411024,0.4098,2505.4,2505.2,0.7879]
[1728271411631,0.4098,2505.4,2505.2,1.06733]
[1728271413137,0.4098,2505.4,2505.2,0.7879]
[1728271415434,3.2078,2505.5,2505.2,0.7879]
[1728271415637,3.2078,2505.5,2505.4,0.27941]
[1728271415933,3.2078,2505.5,2505.2,0.7879]
[1728271416337,3.2078,2505.5,2505.2,1.06732]
[1728271416639,4.2968,2505.5,2505.2,1.06732]
[1728271417332,0.27942,2505.3,2505.0,0.69595]
[1728271417541,3.2078,2505.1,2505.0,0.4165]
[1728271417740,3.2078,2505.1,2505.0,0.69595]
[1728271420338,3.2078,2505.1,2505.0,0.4165]
[1728271420939,3.2078,2505.1,2504.9,0.8039]
[1728271421139,0.3816,2505.0,2504.9,0.8039]
[1728271421340,0.3816,2505.0,2504.8,4.5939]
[1728271421545,0.3816,2505.0,2504.8,0.4039]
[1728271422542,4.65305,2505.0,2504.7,0.27948]
[1728271422744,3.2078,2504.8,2504.7,0.27948]
[1728271423342,3.2078,2504.8,2504.4,0.4181]
[1728271423645,6.3278,2504.8,2504.6,0.27949]
[1728271424247,6.3278,2504.8,2504.5,0.2795]
[1728271426242,3.2078,2504.8,2504.6,0.27949]
[1728271427142,3.2078,2504.8,2504.5,0.2795]
[1728271427344,3.2078,2504.8,2504.6,0.27949]
[1728271427640,3.2078,2504.8,2504.7,0.27948]
[1728271428049,3.2078,2504.8,2504.4,1.2578]
[1728271428050,3.2078,2504.8,2504.6,0.27949]
[1728271429442,3.2078,2504.8,2504.4,1.2578]
[1728271429643,3.2078,2504.8,2504.7,0.27948]
[1728271430043,3.2078,2504.8,2504.7,3.39948]
[1728271430648,3.2078,2504.8,2504.7,7.39228]
[1728271430946,3.2078,2504.8,2504.7,3.39948]
[1728271431150,3.2078,2504.8,2504.7,7.39228]
[1728271433051,3.2078,2504.8,2504.7,3.39948]
[1728271433851,3.2078,2505.4,2504.7,7.1128]
[1728271434052,3.2078,2505.4,2504.6,0.69872]
[1728271434053,3.2078,2505.4,2504.9,3.12]
[1728271434247,3.2078,2505.4,2505.2,0.27942]
[1728271434446,3.2078,2505.4,2505.3,1.2153]
[1728271434645,3.2078,2505.4,2505.3,1.49472]
[1728271434850,7.199,2505.4,2505.3,1.2153]
[1728271437056,7.47841,2505.4,2505.3,1.2153]
[1728271437352,7.47841,2505.4,2505.3,0.4058]
[1728271437852,7.47841,2505.4,2505.1,0.27943]
[1728271438063,0.4166,2505.3,2505.1,0.27943]
[1728271438848,0.4166,2505.3,2504.9,0.4218]
[1728271438849,0.27944,2505.2,2504.9,0.4218]
[1728271439049,3.2078,2505.0,2504.9,0.4218]
[1728271439648,3.2078,2505.0,2504.9,0.70126]
[1728271439849,3.2078,2505.0,2504.9,0.4218]
[1728271441853,0.27947,2504.9,2504.6,0.27949]
[1728271442158,3.2078,2504.7,2504.5,0.7987]
[1728271442456,3.2078,2504.7,2504.5,1.0782]
[1728271443551,3.2078,2505.0,2504.5,0.7987]
[1728271443752,3.2078,2505.0,2504.7,0.27948]
[1728271444160,3.2078,2505.0,2504.8,0.3869]
[1728271444658,7.1998,2505.0,2504.8,0.3869]
[1728271444961,3.2078,2505.0,2504.8,0.66637]
[1728271445754,7.1998,2505.0,2504.8,0.3869]
[1728271445950,3.48725,2505.0,2504.8,0.3869]
[1728271446264,0.27946,2504.9,2504.8,0.3869]
[1728271446457,0.3939,2504.9,2504.8,0.3869]
[1728271450757,3.48725,2505.0,2504.8,0.3869]
[1728271450959,3.2078,2505.0,2504.9,0.3998]
[1728271451157,3.48725,2505.0,2504.9,0.8033]
[1728271451558,3.2078,2505.0,2504.9,0.8033]
[1728271452856,3.2078,2505.0,2504.9,1.08276]
[1728271457769,3.2078,2505.0,2504.9,0.8033]
[1728271461066,6.60725,2505.0,2504.7,0.27948]
[1728271461274,7.01615,2505.0,2504.7,0.27948]
[1728271461467,7.01615,2505.0,2504.8,0.4011]
[1728271461657,7.01615,2505.0,2504.8,0.7835]
[1728271462873,3.2078,2505.0,2504.8,0.7835]
[1728271463069,3.2078,2505.0,2504.9,0.4128]
[1728271463263,3.2078,2505.0,2504.9,0.69226]
[1728271463469,3.2078,2505.0,2504.9,0.4128]
[1728271467872,3.48725,2505.0,2504.9,0.4128]
[1728271468974,3.48725,2505.0,2504.8,0.7835]
[1728271469472,0.27946,2504.9,2504.8,0.7835]
[1728271469769,0.27946,2504.9,2504.6,0.27949]
[1728271469770,1.44,2504.9,2504.6,0.27949]
[1728271469974,3.2078,2504.7,2504.5,0.7955]
[1728271470163,3.2078,2504.7,2504.6,0.27949]
[1728271471273,3.2078,2504.7,2504.5,1.075]
[1728271471469,3.2078,2504.7,2504.6,0.27949]
[1728271473671,3.2078,2504.7,2504.5,0.7955]
[1728271473872,3.48729,2504.7,2504.5,0.7955]
[1728271474072,0.6982,2504.6,2504.4,0.4174]
[1728271474270,2.5297,2504.6,2504.4,0.4174]
[1728271474467,2.2502,2504.6,2504.4,0.4174]
[1728271474776,0.27951,2504.5,2504.4,0.4174]
[1728271474972,1.71951,2504.5,2504.4,0.4174]
[1728271475666,1.71951,2504.5,2504.3,0.8194]
[1728271475875,3.2078,2504.4,2504.3,0.8194]
[1728271476480,3.48732,2504.4,2504.3,0.8194]
[1728271476872,3.2078,2504.4,2504.3,0.8194]
[1728271477577,3.2078,2504.4,2504.1,0.4154]
[1728271477784,3.2078,2504.4,2504.1,0.69495]
[1728271478677,6.3278,2504.4,2504.1,0.69495]
[1728271479883,6.3278,2504.4,2504.2,0.27954]
[1728271480578,6.3278,2504.4,2504.1,0.4154]
[1728271480783,6.3278,2504.4,2504.1,0.69494]
[1728271480979,6.3278,2504.4,2504.2,0.27954]
[1728271486385,6.3278,2504.4,2504.1,0.4154]
[1728271486686,6.3278,2504.4,2504.3,0.27953]
[1728271486890,6.3278,2504.4,2504.1,0.4154]
[1728271487187,6.3278,2504.4,2504.2,0.27953]
[1728271488289,6.3278,2504.4,2504.3,0.27953]
[1728271488492,6.3278,2504.4,2504.2,0.27953]
[1728271488681,6.3278,2504.4,2504.3,0.27953]
[1728271489694,6.3278,2504.4,2504.1,0.4154]
[1728271489992,6.3278,2504.4,2504.3,0.27953]
[1728271493082,3.12,2504.4,2504.3,0.27953]
[1728271493289,6.3278,2504.4,2504.3,0.27953]
[1728271496893,3.2078,2504.4,2504.3,0.27953]
[1728271497693,3.12,2504.7,2504.5,0.27949]
[1728271497895,3.12,2504.7,2504.6,1.2406]
[1728271498095,3.12,2504.7,2504.6,1.52009]
[1728271498396,1.44,2504.7,2504.6,1.52009]
[1728271498895,1.44,2504.7,2504.6,1.2406]
[1728271499795,1.44,2504.7,2503.9,0.69891]
[1728271499989,4.6478,2504.5,2504.4,0.27952]
[1728271502194,0.3886,2505.1,2504.4,0.27952]
[1728271502195,3.2078,2504.8,2504.7,0.27948]
[1728271502586,0.3923,2505.2,2505.0,0.27945]
[1728271502587,5.0412,2505.2,2505.0,0.27945]
[1728271502797,5.0412,2505.2,2505.1,0.3893]
[1728271503092,5.0412,2505.2,2505.1,1.1616]
[1728271503501,3.6012,2505.2,2505.1,1.1616]
[1728271503796,3.2078,2505.2,2505.1,1.44104]
[1728271504188,4.6478,2505.2,2505.1,1.1616]
[1728271504394,4.92723,2505.2,2505.1,1.1616]
[1728271504691,4.6478,2505.2,2505.1,1.1616]
[1728271509298,8.6398,2505.2,2504.2,1.44]
[1728271509503,8.6398,2505.2,2504.7,0.67587]
[1728271509504,3.2078,2504.8,2504.7,0.67587]
[1728271509798,4.92728,2504.8,2504.6,0.4017]
[1728271510001,0.4109,2504.7,2504.6,0.4017]
[1728271510508,0.4109,2504.7,2504.6,0.68119]
[1728271510697,0.4109,2504.7,2504.6,0.4017]
[1728271514606,3.6187,2504.7,2504.6,0.4017]
[1728271518202,3.6187,2504.7,2504.6,0.68119]
[1728271518606,3.6187,2504.7,2504.6,0.4017]
[1728271521210,3.89818,2504.7,2504.5,0.3947]
[1728271522601,3.6187,2504.7,2504.5,0.3947]
[1728271522808,3.6187,2504.7,2504.6,0.27949]
[1728271523311,3.6187,2504.7,2504.5,0.3947]
[1728271523312,3.6187,2504.7,2504.5,0.6742]
[1728271523512,3.6187,2504.7,2504.6,0.27949]
[1728271524914,3.2078,2504.7,2504.6,0.27949]
[1728271526010,3.2078,2504.7,2504.6,0.67799]
[1728271526213,3.2078,2504.7,2504.6,0.3985]
[1728271528512,3.2078,2504.7,2504.6,0.67799]
[1728271528709,3.2078,2504.7,2504.6,4.67079]
[1728271529016,0.7831,2505.2,2504.6,4.67079]
[1728271529017,1.71947,2504.9,2504.6,0.67799]
[1728271529615,3.2078,2504.7,2504.6,0.67799]
[1728271530212,0.3992,2504.8,2504.6,0.67799]
[1728271530613,3.2078,2504.7,2504.6,0.67799]
[1728271533015,0.3992,2504.8,2504.6,0.67799]
[1728271533419,3.2078,2504.7,2504.6,0.67799]
[1728271533618,0.3992,2504.8,2504.7,0.27948]
[1728271533919,3.607,2504.8,2504.6,0.67799]
[1728271537516,4.28508,2504.8,2504.6,0.3985]
[1728271541122,1.71948,2504.7,2504.6,0.3985]
[1728271541314,1.44,2504.7,2504.6,0.3985]
[1728271544028,3.2078,2504.8,2504.7,0.27948]
[1728271544334,3.2078,2505.2,2504.7,5.4328]
[1728271544630,3.2078,2505.2,2505.0,0.27945]
[1728271544826,3.2078,2505.2,2505.1,0.8425]
[1728271546625,0.3902,2505.3,2505.1,0.8425]
[1728271546823,4.6478,2505.5,2505.1,0.8425]
[1728271546824,4.9272,2505.5,2505.2,0.67053]
[1728271547026,4.6478,2505.5,2505.2,0.67053]
[1728271547423,3.2078,2505.5,2505.2,1.8311]
[1728271547628,3.2078,2505.5,2505.4,0.27941]
[1728271548927,3.2078,2505.5,2505.2,1.8311]
[1728271549127,3.2078,2505.5,2505.3,0.27941]
[1728271549324,3.2078,2505.5,2505.3,0.27942]
[1728271549934,4.6478,2505.5,2505.3,0.27942]
[1728271550939,4.6478,2505.5,2505.4,0.3939]
[1728271553932,3.2078,2505.5,2505.4,0.67331]
[1728271554136,0.66537,2505.8,2505.7,0.27937]
[1728271554137,3.2078,2505.8,2505.7,0.27937]
[1728271554836,3.2078,2505.8,2505.7,1.218]
[1728271560834,3.2078,2505.8,2504.5,3.3008]
[1728271560835,8.639,2505.8,2504.5,3.3008]
[1728271561030,8.639,2505.8,2505.2,0.7867]
[1728271561031,3.2078,2505.4,2505.2,0.7867]
[1728271561239,3.2078,2505.4,2505.3,0.67352]
[1728271561836,1.71939,2505.6,2505.3,0.67352]
[1728271562144,1.71939,2505.6,2505.3,0.3941]
[1728271562337,3.2078,2505.4,2505.3,0.67351]
[1728271562537,5.33508,2505.7,2505.3,0.67351]
[1728271563040,0.27939,2505.6,2505.3,0.67351]
[1728271563642,0.27939,2505.6,2505.3,0.3941]
[1728271565643,5.455,2505.7,2505.3,0.67352]
[1728271565847,0.27939,2505.6,2505.3,0.3941]
[1728271566842,5.455,2505.7,2505.3,0.3941]
[1728271567041,0.27939,2505.6,2505.3,0.3941]
[1728271567742,5.455,2505.7,2505.3,0.3941]
[1728271567946,3.2078,2505.4,2505.3,0.3941]
[1728271568137,0.27942,2505.3,2504.7,1.44]
[1728271568336,3.2078,2505.1,2504.9,1.06166]
[1728271568739,1.44,2505.2,2505.0,0.27945]
[1728271568939,1.8571,2505.2,2505.0,0.69035]
[1728271569243,3.2078,2505.1,2505.0,0.69035]
[1728271569639,0.4171,2505.2,2505.1,0.27944]
[1728271569950,0.4171,2505.2,2505.0,0.4109]
[1728271569951,0.4171,2505.2,2505.0,0.69034]
[1728271573450,3.2078,2505.1,2505.0,0.4109]
[1728271573860,3.2078,2505.1,2505.0,0.69035]
[1728271575064,3.2078,2505.1,2505.0,0.4109]
[1728271578352,3.2078,2505.1,2504.9,1.06166]
[1728271579755,3.2078,2505.1,2505.0,0.27945]
[1728271582160,0.4171,2505.2,2505.0,0.27945]
[1728271582358,3.6249,2505.2,2505.0,0.27945]
[1728271583655,3.6249,2505.2,2505.1,0.27944]
[1728271584060,3.6249,2505.2,2504.9,2.2222]
[1728271584257,3.6249,2505.2,2505.0,0.27944]
[1728271584954,3.6249,2505.2,2505.1,0.27944]
[1728271585159,3.6249,2505.2,2504.9,2.2222]
[1728271585360,3.6249,2505.2,2505.0,0.27944]
[1728271586453,0.4171,2505.2,2505.0,0.27944]
[1728271586660,3.6249,2505.2,2505.0,0.27944]
[1728271588456,3.6249,2505.2,2505.1,0.27944]
[1728271590871,3.6249,2505.2,2504.9,2.2222]
[1728271591063,3.6249,2505.2,2505.1,0.27944]
[1728271591866,3.6249,2505.2,2505.0,0.27944]
[1728271592169,3.6249,2505.2,2504.9,2.2222]
[1728271592364,3.6249,2505.2,2505.1,0.27944]
[1728271592671,3.6249,2505.2,2505.0,0.27944]
[1728271592870,3.6249,2505.2,2505.1,0.27944]
[1728271593071,0.4171,2505.2,2505.1,0.27944]
[1728271593273,3.6249,2505.2,2505.1,0.27944]
[1728271598665,0.4171,2505.2,2505.1,0.27944]
[1728271599271,3.6249,2505.2,2505.1,0.27944]
[1728271599767,3.2078,2505.2,2505.1,0.27944]
[1728271600263,3.2078,2505.2,2505.1,0.69114]
[1728271601770,3.2078,2505.5,2505.1,10.4037]
[1728271601971,0.431,2506.1,2505.7,0.27936]
[1728271601972,3.625,2505.9,2505.7,0.27936]
[1728271602277,3.625,2505.9,2505.8,1.1837]
[1728271602975,3.2078,2505.9,2505.8,1.1837]
[1728271603673,3.2078,2505.9,2505.8,1.46306]
[1728271604273,3.2078,2505.9,2505.8,1.1837]
[1728271605772,3.2078,2505.9,2505.8,1.46306]
[1728271606874,3.2078,2505.9,2505.8,1.1837]
[1728271608074,2.13653,2506.1,2505.8,1.1837]
[1728271608275,3.2078,2505.9,2505.8,1.1837]
[1728271613378,4.6478,2505.9,2505.2,3.2078]
[1728271613576,1.71938,2505.7,2505.4,1.2196]
[1728271613884,0.3835,2505.8,2505.1,4.46943]
[1728271613885,0.2794,2505.5,2505.1,4.46943]
[1728271614083,0.2794,2505.5,2505.2,0.8075]
[1728271614084,0.3835,2505.4,2505.2,0.8075]
[1728271618785,0.3835,2505.4,2505.2,1.08692]
[1728271619083,0.3835,2505.4,2505.2,0.8075]
[1728271619881,0.3835,2505.4,2505.2,2.52692]
[1728271620589,3.2078,2505.5,2505.2,2.52692]
[1728271621778,3.2078,2505.5,2505.2,2.2475]
[1728271621986,3.2078,2505.8,2505.3,1.44]
[1728271622176,3.2078,2505.8,2505.6,1.44]
[1728271622372,3.2078,2505.8,2505.7,1.2527]
[1728271623383,3.90886,2505.8,2505.7,0.8392]
[1728271625486,5.34886,2505.8,2505.5,0.27939]
[1728271625785,0.27939,2505.5,2505.3,0.4081]
[1728271625987,0.3998,2505.4,2505.3,0.4081]
[1728271626986,3.2078,2505.5,2505.3,0.4081]
[1728271627583,3.2078,2505.5,2505.3,1.8481]
[1728271627786,3.2078,2505.5,2505.3,2.12751]
[1728271629894,0.3998,2505.7,2505.4,1.44]
[1728271630098,0.3998,2505.7,2505.5,0.66249]
[1728271630391,0.3998,2505.7,2505.6,0.402]
[1728271631483,3.2078,2505.8,2505.6,0.402]
[1728271631683,3.2078,2505.8,2505.7,0.4142]
[1728271632884,3.48717,2505.8,2505.6,0.402]
[1728271633186,3.48717,2505.8,2505.5,0.3831]
[1728271633187,0.27938,2505.7,2505.3,0.27941]
[1728271633389,0.27938,2505.6,2505.3,0.27941]
[1728271633596,0.68728,2505.6,2505.3,0.27941]
[1728271633895,0.68728,2505.6,2505.4,0.4196]
[1728271634688,0.4079,2505.6,2505.4,0.4196]
[1728271635189,0.4079,2505.6,2505.4,0.699]
[1728271635390,0.4079,2505.6,2505.5,0.4001]
[1728271637995,3.88137,2505.8,2505.7,0.27937]